Cogmind - Beta 13 X2 @@@ ROGUE MODE // 2024.01.11 @ 22:55:10 Player: Boris Result: Destroyed by OA-0NH(R) with Subdweller Beam Cannon Performance ------------- Evolutions (0) 0 Regions Visited (2) 400 Robots Destroyed (42) 210 Value Destroyed (1062) 1062 Prototype IDs (0) 0 Alien Tech Used (0) 0 Bonus (0) 0 TOTAL SCORE: 1672 Bonus ------- None Cogmind --------- Core Integrity 0/250 Matter 145/300 Energy 100/100 System Corruption 0% Temperature Cool (9) Movement Treading (160) Location -10/Subcaves Parts ------- > --- POWER (1) -------- (None) > --- PROPULSION (2) --- Spiked Treads > --- UTILITY (2) ------ (None) > --- WEAPON (2) ------- Subdweller Machine Gun Subdweller Shrapnel Launcher > --- INVENTORY (5) ---- Seismic Detector Light Armor Plating Barrage Gun Multitool Piercing Trap Peak State ------------ > --- POWER ------------ Subdweller Power Source > --- PROPULSION ------- Spiked Treads Spiked Treads > --- UTILITY ---------- Improved Terrain Scanner Seismic Detector > --- WEAPON ----------- Subdweller Machine Gun Barrage Gun > --- INVENTORY -------- Scrap Shield Subdweller Shrapnel Launcher Subdweller Shrapnel Launcher Multitool [Rating: 16] Favorites ----------- Power Ion Engine Engine Ion Engine Propulsion Light Treads Treads Light Treads Utility Seismic Detector Device Seismic Detector Storage Small Storage Unit Processor Terrain Scan Processor Protection Scrap Shield Weapon Subdweller Beam Cannon Energy Gun Medium Laser Energy Cannon Subdweller Beam Cannon Ballistic Gun Subdweller Machine Gun Launcher Subdweller Shrapnel Launcher Build | -11 -10 -10 ------- Run | Yrd Mat Sub Slots Evolved . | . . . Power . | . . . Propulsion . | . . . Utility . | . . . Weapon . | . . . Parts Attached 89 | 7 13 69 Power 7 | 1 . 6 Engine 7 | 1 . 6 Core . | . . . Reactor . | . . . Propulsion 9 | 2 2 5 Treads 9 | 2 2 5 Leg . | . . . Wheel . | . . . Hover . | . . . Flight . | . . . Utility 50 | 2 6 42 Device 32 | 1 1 30 Storage 2 | 1 1 . Processor 4 | . 4 . Hackware . | . . . Protection 12 | . . 12 Artifact . | . . . Weapon 23 | 2 5 16 Energy Gun 7 | 2 3 2 Energy Cannon 7 | . . 7 Ballistic Gun 2 | . . 2 Ballistic Cannon . | . . . Launcher 7 | . 2 5 Special Weapon . | . . . Impact Weapon . | . . . Slashing Weapon . | . . . Piercing Weapon . | . . . Special Melee Weapon . | . . . Unidentified Prototypes . | . . . Parts Lost 7 | . . 7 Power 2 | . . 2 Propulsion 1 | . . 1 Utility 3 | . . 3 Weapon 1 | . . 1 Highest Loss Streak 3 | . . 3 To Critical Strikes . | . . . Average Slot Usage (%) 95 | . 99 94 Engine 13 | . 14 13 Treads 28 | . 28 28 Device 16 | . 12 18 Storage 1 | . 4 . Processor 3 | . 11 1 Protection 2 | . . 3 Energy Gun 11 | . 27 5 Energy Cannon 9 | . . 13 Ballistic Gun 1 | . . 2 Launcher 5 | . . 7 Naked Turns . | . . . Heaviest Build 48 | 15 48 39 Greatest Support 40 | 40 40 40 Greatest Overweight (x) 1 | . 1 . Average Overweight (x) . | . . . Largest Inventory Capacity 20 | 8 20 5 Average Capacity 5 | 6 7 5 Most Carried 8 | 5 8 5 Average Carried 4 | 2 5 4 Final Capacity 20 | 8 20 5 Final Carried 8 | 5 8 5 Class Distribution -------------------- 63% | Subdweller-Mutant 36% | Mutant Dominant Class ---------------- Mutant | -10/Materials Subdweller-Mutant | -10/Subcaves Resources | -11 -10 -10 ----------- Run | Yrd Mat Sub Matter Collected 2001 | 270 301 1430 Remotely . | . . . Salvage Created 1139 | 149 259 731 Parts 78 | 9 27 42 Haulers Intercepted 1 | . 1 . Recyclers Shooed . | . . . Parts Field Recycled . | . . . Retrieved Matter . | . . . Parts Self-Destructed 7 | . . 7 Prevented . | . . . Kills | -11 -10 -10 ------- Run | Yrd Mat Sub Combat Hostiles Destroyed 34 | . 10 24 Guns 8 | . 6 2 Cannons 11 | . . 11 AOE 15 | . 4 11 Classes Destroyed 10 | 2 5 3 Builder 1 | . 1 . Tunneler 4 | 4 . . Hauler 1 | . 1 . Recycler 1 | 1 . . Watcher 2 | . 2 . Swarmer 11 | . 9 2 Grunt 1 | . 1 . Sentry 1 | . . 1 Artisan 1 | . . 1 Subdweller 21 | . . 21 Best Kill Streak 4 | 2 3 4 Combat Bots Only 4 | . 3 4 Max Kills in Single Turn 2 | 1 2 2 Gunslinging 1 | . 1 . Exploded 2 | . 2 2 Melee . | . . . Uniques/NPCs Destroyed . | . . . Combat | -11 -10 -10 -------- Run | Yrd Mat Sub Hostile Shots Fired 139 | . 51 88 Missed 48 | . 18 30 Damage Taken 1839 | 8 277 1554 Core 259 | . 64 195 Absorbed by Shields . | . . . Core Remaining (%) 100 | 100 . . Volleys Fired 172 | 22 25 125 Largest 2 | 2 2 2 Hottest 160 | 90 90 160 Shots Fired 229 | 24 47 158 Gun 104 | 24 44 36 Cannon 100 | . . 100 Launcher 25 | . 3 22 Special . | . . . Kinetic 37 | . . 37 Thermal 186 | 22 44 120 Explosive 4 | . 3 1 Electromagnetic 2 | 2 . . Robot Hit Streak 36 | 7 9 36 Robot Miss Streak 5 | 2 5 3 Penetration Max . | . . . Secondary Targets 1 | . 1 . Max Gunslinging Chain 1 | . 1 . Shots Hit Robots 119 | 16 26 77 Core Hits 57 | 6 15 36 Critical Kills 1 | . . 1 Critical Parts Destroyed . | . . . Critical Strikes 6 | 4 1 1 Burn 5 | 4 1 . Destroy 1 | . . 1 Melee Attacks . | . . . Impact . | . . . Slashing . | . . . Piercing . | . . . Sneak Attacks . | . . . Combat Hostiles . | . . . Follow-up Attacks . | . . . Damage Inflicted 3903 | 229 531 3143 Guns 1077 | 205 330 542 Cannons 1005 | . . 1005 Explosions 1820 | 24 200 1596 Melee . | . . . Ramming 1 | . 1 . Kinetic 1764 | . . 1764 Thermal 1830 | 214 330 1286 Explosive 293 | . 200 93 Electromagnetic 15 | 15 . . Impact . | . . . Slashing . | . . . Piercing . | . . . Highest Corruption . | . . . Average Corruption . | . . . Corruption Purged . | . . . Corruption Blocked . | . . . Overload Shots . | . . . Overflow Damage 10 | . 10 . Projectiles . | . . . Explosions 10 | . 10 . Melee . | . . . Knockbacks . | . . . Impact . | . . . Kinetic . | . . . Secondary . | . . . Self-Inflicted Damage 35 | 9 9 17 Shots 4 | 1 1 2 Rammed 2 | . 2 . Targets Rammed 2 | . 2 . Kicked . | . . . Crushed . | . . . Highest Temperature 180 | 72 180 180 Average Temperature 51 | 24 70 50 Received Heat Transfer 231 | . 18 213 Siege Activations . | . . . Robots Corrupted . | . . . Combat Hostiles . | . . . Parts Fried . | . . . Impact Corruptions . | . . . Robots Melted . | . . . Combat Hostiles . | . . . Parts Melted 7 | 3 3 1 Heat Transferred 3513 | 901 930 1682 Parts Sabotaged . | . . . Parts Stolen . | . . . Parts Stripped . | . . . Power Chain Reactions 1 | 1 . . Missiles Intercepted . | . . . Alert | -11 -10 -10 ------- Run | Yrd Mat Sub Peak Influence 244 | 25 244 . Initial 16 | . 16 . Average 47 | 11 52 . Maximum Alert Level 1 | . 1 . Low Security (%) 89 | 100 87 . Level 1 10 | . 12 . Level 2 . | . . . Level 3 . | . . . Level 4 . | . . . Level 5 . | . . . High Security . | . . . Max Security . | . . . Squads Dispatched 1 | . 1 . Investigation . | . . . Extermination . | . . . Reinforcement 1 | . 1 . Assault . | . . . Garrison . | . . . Intercept . | . . . Searches Triggered . | . . . Construction Impeded . | . . . Haulers Reinforced . | . . . Active Scanning Responses . | . . . Cargo Convoy Interrupts . | . . . Stealth | -11 -10 -10 --------- Run | Yrd Mat Sub Distress Signals . | . . . Communications Jammed . | . . . Distress Signals . | . . . Times Spotted 54 | . 20 34 Peak Tracking Total 6 | . 3 6 Tactical Retreats 4 | . 1 3 Traps | -11 -10 -10 ------- Run | Yrd Mat Sub Traps Triggered 1 | . . 1 Indirectly . | . . . Trap Hack Attempts . | . . . Triggered . | . . . Disarmed . | . . . Reprogrammed . | . . . Reused . | . . . Traps Extracted . | . . . Installed . | . . . Triggered . | . . . Most Traps Carried 1 | . . 1 Machines | -11 -10 -10 ---------- Run | Yrd Mat Sub Machines Disabled . | . . . Max in Single Turn . | . . . Machines Repaired . | . . . Machines Dismantled . | . . . Machines Sabotaged . | . . . Overloaded Fab Kills . | . . . Hacking | -11 -10 -10 --------- Run | Yrd Mat Sub Machines Accessed 5 | . 5 . Terminals 5 | . 5 . Fabricators . | . . . Repair Stations . | . . . Recycling Units . | . . . Scanalyzers . | . . . Garrison Access . | . . . Total Hacks 13 | . 13 . Successful 5 | . 5 . Failed 8 | . 8 . Catastrophic . | . . . Database Lockouts . | . . . Manual 5 | . 5 . Terminals 13 | . 13 . Fabricators . | . . . Repair Stations . | . . . Recycling Units . | . . . Scanalyzers . | . . . Garrison Access . | . . . Terminal Hacks 4 | . 4 . Unreport Threat 1 | . 1 . Locate Traps 1 | . 1 . Registered Prototypes 1 | . 1 . Zone Layout 1 | . 1 . Fabricator Hacks . | . . . Repair Station Hacks . | . . . Recycling Unit Hacks . | . . . Scanalyzer . | . . . Garrison Access Hacks . | . . . Unauthorized Hacks 1 | . 1 . Terminals 1 | . 1 . Botnet 1 | . 1 . Fabricators . | . . . Repair Stations . | . . . Recycling Units . | . . . Scanalyzers . | . . . Garrison Access . | . . . Data Cores Recovered . | . . . Used . | . . . Hacking Detections 3 | . 3 . Full Trace Events . | . . . Feedback Events . | . . . Feedback Blocked . | . . . Robot Schematics Acquired . | . . . Robots Built . | . . . Authchips . | . . . Time . | . . . Total Robot Build Rating . | . . . Part Schematics Acquired . | . . . Parts Built . | . . . Authchips . | . . . Time . | . . . Total Part Build Rating . | . . . Parts Repaired . | . . . Time . | . . . Parts Recycled . | . . . Recycled Matter . | . . . Retrieved Matter . | . . . Retrieved Components . | . . . Parts Scanalyzed . | . . . Part Schematics Acquired . | . . . Parts Damaged . | . . . Bothacking | -11 -10 -10 ------------ Run | Yrd Mat Sub Used RIF Installer . | . . . Robots Hacked . | . . . Non-combat . | . . . Combat . | . . . Robot Hacks Applied . | . . . Relay Couplers Released . | . . . Fabnet Peak Effective % . | . . . Robots Rewired . | . . . Allies Hacked . | . . . Hacks Repelled . | . . . Allies | -11 -10 -10 -------- Run | Yrd Mat Sub Total Allies . | . . . Largest Group . | . . . Highest-Rated Group . | . . . Highest-Rated Ally . | . . . Total Orders . | . . . Ally Attacks . | . . . Total Damage . | . . . Kills . | . . . Allies Corrupted . | . . . Allies Melted . | . . . Intel | -11 -10 -10 ------- Run | Yrd Mat Sub Robot Analysis Total . | . . . Derelict Logs Recovered 1 | . . 1 Drone Launches . | . . . Drone Recoveries . | . . . Exploration | -11 -10 -10 ------------- Run | Yrd Mat Sub Turns Passed 7059 | 308 1911 4840 Spaces Moved 2961 | 153 670 2138 Core 5 | 5 . . Treads 2956 | 148 670 2138 Legs . | . . . Wheels . | . . . Hover . | . . . Flight . | . . . Fastest Speed 50 | 50 160 160 Average Speed 162 | 156 172 160 Slowest Speed 240 | 160 240 160 Overloaded Moves . | . . . Propulsion Burnouts . | . . . Robots Hopped . | . . . Cave-ins Triggered . | . . . Exploration Rate (%) 58 | 9 76 89 Regions Visited 2 Branch Regions 1 Pre-discovered Areas 1 | . . 1 Known Exits Taken . | . . . Unknown Exits Taken 2 | 1 1 . Scrap Searched 13 | . . 13 Spaces Dug 79 | . 15 64 Terrain Destroyed 304 | 3 27 274 Melee . | . . . Projectile 12 | . . 12 AOE 292 | 3 27 262 Terrain Rammed . | . . . Walls Destroyed . | . . . Machines Disabled . | . . . Actions | -11 -10 -10 --------- Run | Yrd Mat Sub Total 4985 | 194 1380 3411 Wait 1638 | 8 649 981 Move 2959 | 152 669 2138 Hop . | . . . Pick Up 35 | 5 9 21 Fast Attach 36 | 7 5 24 Attach 21 | . . 21 Detach 23 | . 3 20 Swap 32 | . 8 24 Drop 58 | . 10 48 Fire 172 | 22 25 125 Melee . | . . . Ram . | . . . Kick . | . . . Crush 2 | . 2 . Escape Stasis . | . . . Rewire . | . . . Trap . | . . . Miscellaneous 9 | . . 9 Route ------- -11/Scrapyard -10/Materials (discovered 4 exits: *Mat x2 / [*Min] / [*Sub]) -10/Subcaves (discovered 2 exits: *Mat x2) History --------- Turn | Location | Event 23 | -11/Scrapyard | Discovered new exit (range 14) 309 | -11/Scrapyard | Entered Materials 330 | -10/Materials | Build established: Mutant 756 | -10/Materials | Discovered new exit (range 14) 906 | -10/Materials | Identified exit to Materials 1133 | -10/Materials | Discovered new exit (range 15) 1803 | -10/Materials | Discovered new exit (range 11) 1876 | -10/Materials | Discovered exit to Materials (range 9) 2220 | -10/Materials | Entered Subcaves 2507 | -10/Subcaves | A swath of the cavern ceiling suddenly collapsed 2511 | -10/Subcaves | Disturbed a concealed Subdweller 2664 | -10/Subcaves | Ambushed by Subdweller buried in earth 2863 | -10/Subcaves | Build established: Subdweller-Mutant 2912 | -10/Subcaves | Shifting Twisted Machinery released Flamer 2918 | -10/Subcaves | Shifting Twisted Machinery released Battle Rifle 3554 | -10/Subcaves | Core integrity fell below 50% 4556 | -10/Subcaves | Ambushed by Subdweller buried in earth 4562 | -10/Subcaves | Ambushed by Subdweller buried in earth 4802 | -10/Subcaves | Identified exit to Materials 4927 | -10/Subcaves | Discovered exit to Materials (range 9) 5349 | -10/Subcaves | Disturbed a concealed Subdweller 5383 | -10/Subcaves | Disturbed a concealed Subdweller 6104 | -10/Subcaves | Ambushed by angry Subdweller bent on revenge 6189 | -10/Subcaves | Ambushed by Subdweller buried in earth 6257 | -10/Subcaves | Learned location of Zion (-7) 6257 | -10/Subcaves | Met a Zionite searching for "candidates" 7041 | -10/Subcaves | Ambushed by Subdweller buried in earth 7043 | -10/Subcaves | Ambushed by Subdweller buried in earth 7045 | -10/Subcaves | Ambushed by Subdweller buried in earth 7045 | -10/Subcaves | Ambushed by Subdweller buried in earth 7047 | -10/Subcaves | Core integrity fell below 20% 7054 | -10/Subcaves | Ambushed by Subdweller buried in earth 7054 | -10/Subcaves | Ambushed by Subdweller buried in earth 7057 | -10/Subcaves | Ambushed by Subdweller buried in earth 7060 | -10/Subcaves | Destroyed by OA-0NH(R) with Subdweller Beam Cannon Last Messages --------------- 06702_ Dropped Broken Sub. Power Source. 06707_ Acquired Lgt. Ion Engine. 06709_ Acquired 10 matter. 07042_ 2F-E6U(R): "ARGHSUB!" 07044_ YM-PFB(R): "ARGHSUB!" 07046_ 6R-6JB(R): "ARGHSUB!" 07046_ YY-YZL(R): "ARGHSUB!" 07047_ 2F-E6U(R) destroyed. 07049_ Dropped Scrap Shield. 07050_ Acquired Scrap Shield. 07051_ Scrap Shield destroyed. 07052_ YM-PFB(R) affixes Scrap Shield Fragment to Scrap Shield. 07053_ Lgt. Ion Engine destroyed. 07054_ YM-PFB(R) destroyed. 07055_ A9-P2W(R): "GOODGOOD!" 07055_ WK-6FO(R): "ARGHSUB!" 07057_ 6R-6JB(R) destroyed. 07058_ OA-0NH(R): "ARGHSUB!" 07059_ The unstable cave ceiling collapses. 07060_ Spk. Treads destroyed. Map ----- +----------------------------------------------------+ | ????????????????????????????## ##### | | ????????????????????????????## #### ## * | | ????????????????????????????## ### ### |% | | ????????????????????????????### ### ### = | | ????????????????????????????### ## | | ????????????????????????????## | | ????????????????????????????## | | ????????????????????????????### | | ????????????????????????????### = ## | | ?????????????????????????????##### ### | | ?????????????????????????????###### ## #### | | ???????????????????????????######## ## ###### | | ??????????????????????????######## ######## | | ??????????????????????????### ######## | | ??????????????????????????## ### ### | | ??????????????????????????### ## | | ??????????????????????????#### ## ## | | ??????????????????????????#### ####### ## | | ??????????????????????????#### ######## # | | ??????????????????????????## ###### | | ?????????????????########### # | | ?????????????##### ##### ## | | ?????????? ### ^^ ^ ### ### | | ?????????? R #### #### | | ????????????# ;###### ##### | | ?????????????# @ ####### ###?? | | ????????????# % ;;###### ##?? | | ????????????# R ### ##?? | | ????????? & ### ##?? | | ??????????# ; R #### ## #### ##?? | | ????????????; ###################?? | | ???????????? R ## ####?#################?? | | ???????????? ###?###??????????????????????? | | ????????????? #?????????????????????????????? | | ?????????????### ??????????????????????????????? | | ???????????????###???????????????????????????????? | | ?????????????????????????????????????????????????? | | ?????????????????????????????????????????????????? | | ?????????????????????????????????????????????????? | | ?????????????????????????????????????????????????? | | ?????????????????????????????????????????????????? | | ?????????????????????????????????????????????????? | | ?????????????????????????????????????????????????? | | ?????????????????????????????????????????????????? | | ?????????????????????????????????????????????????? | | | | | | | | | | | +----------------------------------------------------+ Best States ------------- Heat Dissipation 25 Energy Generation 15 Energy Capacity 250 Matter Stores 300 Matter Capacity 300 Sight Range 21 Terrain Scan Range 16 Terrain Scan Density 85 Armor Coverage 800 Evasion (%) 40 Recoil Reduction 2 Item Schematics ----------------- None Robot Schematics ------------------ None Fabricated ------------ Nothing Alien Tech Used ----------------- None Achievements -------------- None Challenges ------------ None Game ------ Seed ControlFocalMultitool Manual? 0 Play Time 00:31:06 Cumulative 404.3 hours Start 2024.01.11 @ 22:24:02 End 2024.01.11 @ 22:55:10 Sessions 1 Manual Loads 0 Difficulty Rogue Special Mode None Game No. 148 Rogue 133 Adventurer 15 Explorer 0 Win Type - Total 26 Types 7/1/7/2/2/0/4/2/1 Lore% 89 Gallery% 91 Achievement% 83 Wizard Run 0 Options --------- ASCII 0 Keyboard 0 Movement Numpad Keybinds 0 Fullscreen 1 Font 18/SmallcapsGlow Map View 76x50 Zoom Use 0% Tactical HUD 1 Map Filters NONE Filters NONE Steam 1 RUN: 0f9cac4c-71ec-47e8-8260-7d7f93d1310d